bitfinex/quotes_SOLUSD_20260211
["timestamp","ask_amount","ask_price","bid_price","bid_amount"]
[1770830152834,0.45269409,78.962,78.926,0.49283754]
[1770830155030,6.61135621,78.983,78.941,0.27724884]
[1770830155232,12.66102752,78.983,78.951,0.27724884]
[1770830156049,0.45269409,78.988,78.951,0.27724884]
[1770830157243,12.66031119,78.987,78.953,0.27724785]
[1770830158121,12.66031119,78.987,78.954,12.66560275]
[1770830158527,0.45269409,78.986,78.954,12.66560275]
[1770830158728,0.45269409,78.986,78.95,12.66617283]
[1770830158953,0.45269409,78.986,78.945,44.08]
[1770830159157,0.45269409,78.986,78.885,50.70640462]
[1770830159158,0.45269409,78.978,78.912,0.27724688]
[1770830159344,0.45269409,78.974,78.931,0.27724688]
[1770830159855,0.45269409,78.985,78.951,0.2772464]
[1770830160352,0.2,78.99,78.96,13.23508368]
[1770830160561,12.65999063,78.989,78.96,13.23508368]
[1770830160741,12.65999063,78.989,78.953,0.2772464]
[1770830161950,5.06998661,78.984,78.913,0.27724546]
[1770830162133,0.45269409,78.974,78.915,0.27724546]
[1770830162451,0.45269409,78.972,78.916,12.67170155]
[1770830162841,0.45269409,78.972,78.91,44.06]
[1770830162842,0.45269409,78.963,78.912,12.67222857]
[1770830163151,0.45269409,78.963,78.913,0.277245]
[1770830163340,0.45269409,78.963,78.921,0.277245]
[1770830164344,0.45269409,78.961,78.922,12.67073819]
[1770830165044,0.45269409,78.961,78.914,12.6720227]
[1770830165852,0.45269409,78.961,78.914,12.94926635]
[1770830166354,44.32624113,78.96,78.909,12.67282565]
[1770830166659,0.45269409,78.959,78.915,0.27724365]
[1770830166837,42.14,78.964,78.915,0.27724365]
[1770830167151,12.66379828,78.966,78.921,0.27724322]
[1770830167335,0.45269409,78.977,78.923,0.27724322]
[1770830167735,0.45269409,78.975,78.923,0.27724322]
[1770830168349,0.45269409,78.975,78.922,44.08]
[1770830168350,0.45269409,78.975,78.93,13.23508368]
[1770830168558,12.66239521,78.974,78.933,0.27724278]
[1770830169536,0.45269409,78.973,78.933,0.27724278]
[1770830170150,31.64763279,78.995,78.941,0.27724193]
[1770830170648,12.66027853,78.988,78.943,0.27724193]
[1770830170857,12.66027853,78.988,78.945,0.27724151]
[1770830171748,0.45269409,78.996,78.945,0.27724151]
[1770830171950,12.65949286,78.993,78.945,0.27724151]
[1770830172346,12.65864308,78.998,78.951,0.27724109]
[1770830172543,12.659144,78.995,78.953,0.27724109]
[1770830173133,0.45269409,78.996,78.953,0.27724109]
[1770830173335,13.11022197,79.005,78.953,0.27724109]
[1770830173559,12.65806501,79.002,78.953,0.27724109]
[1770830174158,0.45269409,78.996,78.953,0.27724109]
[1770830174363,12.65999063,78.989,78.953,0.27724109]
[1770830174666,0.45269409,78.986,78.952,12.66592359]
[1770830175076,0.45269409,78.986,78.953,0.27723988]
[1770830175873,0.45269409,78.986,78.952,12.66592359]
[1770830176971,0.45269409,78.984,78.947,12.66672577]
[1770830177269,0.45269409,78.984,78.947,12.94396486]
[1770830177463,0.45269409,78.984,78.948,0.27723909]
[1770830177656,0.2,78.99,78.962,0.2772387]
[1770830177657,1e-08,78.99,78.962,0.2772387]
[1770830177886,1e-08,78.99,78.964,0.2772387]
[1770830178249,1e-08,78.99,78.971,0.2772387]
[1770830178759,1e-08,78.99,78.972,44.22]
[1770830179249,1e-08,78.99,78.974,0.27723832]
[1770830180770,1e-08,78.99,78.973,44.31894444]
[1770830181471,1e-08,78.99,78.974,0.2772372]
[1770830181674,1e-08,78.99,78.975,44.28]
[1770830182053,1e-08,78.99,78.976,0.27723683]
[1770830182255,1e-08,79.0,78.976,0.27723683]
[1770830182575,1e-08,79.01,78.995,0.27723683]
[1770830182784,0.47378765,79.035,78.997,0.27723647]
[1770830183472,0.47378765,79.035,78.999,0.27723647]
[1770830183845,0.47378765,79.044,79.001,0.27723611]
[1770830184249,0.2,79.05,79.001,0.27723611]
[1770830184448,1e-08,79.04,79.012,0.27723611]
[1770830184668,1e-08,79.04,79.021,0.27723576]
[1770830184867,6.60248195,79.082,79.031,0.07723576]
[1770830185071,0.33236339,79.13,79.06,13.23508368]
[1770830185072,0.50001518,79.102,79.06,13.23508368]
[1770830185381,1e-08,79.1,79.06,13.23508368]
[1770830185568,0.50001518,79.098,79.015,12.65582484]
[1770830185747,5.36086188,79.097,79.016,19.56]
[1770830186061,0.50001518,79.083,79.016,19.56]
[1770830186261,0.50001518,79.083,79.015,44.29538694]
[1770830186469,0.50001518,79.083,79.017,44.36]
[1770830186652,0.50001518,79.083,79.02,13.23508368]
[1770830187151,0.50001518,79.083,79.021,44.36]
[1770830187557,0.50001518,79.081,79.022,44.29146313]
[1770830187753,0.50001518,79.081,79.022,107.56498189]
[1770830188065,0.50001518,79.086,79.03,13.23508368]
[1770830188251,0.50001518,79.086,79.031,44.36]
[1770830188661,0.50001518,79.084,79.022,44.29146313]
[1770830188866,0.50001518,79.084,79.023,44.36]
[1770830189860,0.50001518,79.082,79.024,44.29034216]
[1770830190557,44.25729928,79.083,79.024,44.29034216]
[1770830190558,0.50001518,79.079,79.024,44.29034216]
[1770830190760,0.50001518,79.072,79.011,44.38]
[1770830190960,94.8370699,79.083,79.011,44.38]
[1770830190961,0.50001518,79.064,79.011,44.38]
[1770830191267,0.50001518,79.064,79.012,44.38]
[1770830191980,0.50001518,79.062,79.012,44.38]
[1770830192359,0.50001518,79.053,78.96,13.23508368]
[1770830192664,0.50001518,79.034,78.961,44.36]
[1770830192864,0.50001518,79.032,78.961,44.36]
[1770830193259,0.50001518,79.032,78.96,13.23508368]
[1770830193460,0.50001518,79.032,78.98,13.23508368]
[1770830193780,12.64814135,79.063,79.011,0.48213975]
[1770830193964,4.61729252,79.071,79.013,0.48213975]
[1770830194160,31.61618408,79.074,79.015,0.48213975]
[1770830195277,4.61729252,79.071,79.014,38.48]
[1770830195483,9.9781544,79.07,79.011,12.65632314]
[1770830195662,0.50000453,79.06,79.011,12.65632314]
[1770830195862,0.50000453,79.058,79.007,12.65710633]
[1770830196060,0.50000453,79.054,79.007,12.65710633]
[1770830196781,0.50000453,79.047,78.995,0.48213975]
[1770830197070,0.50000453,79.047,79.001,0.48213975]
[1770830197275,0.50000453,79.096,79.021,0.48213975]
[1770830197476,0.50000453,79.084,79.031,0.48213975]
[1770830197689,0.50000453,79.084,79.033,0.48213975]
[1770830197862,0.50000453,79.084,79.035,0.48213975]
[1770830198185,13.14494718,79.083,79.037,0.48213975]
[1770830198373,0.50000453,79.082,79.039,0.48213975]
[1770830198680,1e-08,79.1,79.051,0.48213975]
[1770830198681,0.50000453,79.097,79.051,0.48213975]
[1770830199078,0.50000453,79.097,79.053,0.48213975]
[1770830199462,0.50000453,79.097,79.054,44.36]
[1770830199664,0.50000453,79.089,79.002,0.48213975]
[1770830199865,0.50000453,79.084,79.02,13.18548516]
[1770830200168,0.50000453,79.079,79.023,0.48213975]
[1770830202170,0.50000453,79.077,79.024,12.65438347]
[1770830202679,0.50000453,79.077,79.024,13.13652322]
[1770830202866,0.50000453,79.077,79.024,44.77248191]
[1770830203468,0.50000453,79.077,79.025,0.48213975]
[1770830203782,0.50000453,79.075,79.024,12.65438347]
[1770830204090,0.50000453,79.063,79.018,0.48213975]
[1770830204971,31.61485541,79.077,79.018,0.48213975]
[1770830205171,0.50000453,79.098,79.041,0.48213975]
[1770830205377,13.14108824,79.108,79.061,0.48213975]
[1770830205576,13.14108824,79.108,79.063,0.48213975]
[1770830205772,0.50000453,79.108,79.063,0.38213975]
[1770830206090,41.64,79.138,79.071,44.26401588]
[1770830206091,31.59495274,79.127,79.071,44.26401588]
[1770830206391,0.50000453,79.126,79.08,13.18548516]
[1770830206578,0.50000453,79.126,79.072,44.34]
[1770830206890,12.63911468,79.12,79.072,44.34]
[1770830207070,13.13911921,79.12,79.072,44.34]
[1770830207264,12.64004453,79.114,79.073,44.38]
[1770830207971,12.64004453,79.114,79.074,0.40000783]
[1770830208888,0.50000453,79.113,79.075,12.64622194]
[1770830209493,0.50000453,79.113,79.076,44.42]
[1770830209992,0.50000453,79.125,79.081,0.4000073]
[1770830210897,0.47937936,79.123,79.082,13.04510934]
[1770830211274,12.63763791,79.129,79.083,0.40000679]
[1770830211478,12.63601644,79.139,79.091,0.40000679]
[1770830211795,0.47937936,79.21,79.112,4.61729252]
[1770830211997,0.47937936,79.22,79.18,13.18548516]
[1770830212212,3.95178066,79.235,79.172,6.57953018]
[1770830212213,3.95178066,79.235,79.191,0.40000654]
[1770830212386,3.95178066,79.235,79.19,13.18548516]
[1770830212387,0.47937936,79.245,79.21,13.18548516]
[1770830212698,0.47937936,79.26,79.212,0.40000654]
[1770830212898,0.47937936,79.256,79.193,12.62731702]
[1770830213102,0.47937936,79.256,79.185,44.48]
[1770830213307,0.47937936,79.25,79.185,44.48]
[1770830213618,0.47937936,79.224,79.185,44.48]
[1770830213784,0.47937936,79.224,79.173,12.6305685]
[1770830214180,4.61729252,79.222,79.172,51.03953018]
[1770830214378,0.47937936,79.221,79.172,51.03953018]
[1770830214802,4.61729252,79.21,79.172,6.57953018]
[1770830215008,0.47937936,79.203,79.172,6.57953018]
[1770830216900,0.47937936,79.198,79.148,36.06]
[1770830217402,0.47937936,79.222,79.171,0.40000532]
[1770830217701,0.47937936,79.222,79.16,13.18548516]
[1770830217910,4.61729252,79.236,79.159,0.40000508]
[1770830217911,4.61729252,79.218,79.159,0.40000508]
[1770830218104,0.47937936,79.207,79.149,12.63439841]
[1770830218297,0.47937936,79.202,79.149,12.63439841]
[1770830218595,296.53371018,79.249,79.134,44.36]
[1770830218596,4.61729252,79.193,79.134,44.36]
[1770830218777,0.47937936,79.186,79.1,0.40000485]
[1770830218979,0.47937936,79.169,79.102,0.40000485]
[1770830219194,0.47937936,79.169,79.104,0.40000485]
[1770830219682,41.44,79.168,79.104,0.40000485]
[1770830219896,0.47937936,79.167,79.111,0.40000462]
[1770830220291,5.36086188,79.179,79.131,0.40000462]
[1770830220292,0.47937936,79.179,79.131,0.40000462]
[1770830220499,0.47937936,79.194,79.141,0.40000462]
[1770830220884,44.18801367,79.207,79.132,44.32]
[1770830220885,4.61729252,79.183,79.132,44.32]
[1770830221197,5.36086188,79.177,79.102,0.40000439]
[1770830221402,0.47937936,79.169,79.102,0.40000439]
[1770830221780,5.36086188,79.168,79.102,12.64190538]
[1770830221986,0.47937936,79.158,79.102,12.64190538]
[1770830222288,0.47937936,79.158,79.11,13.18548516]
[1770830222491,0.47937936,79.169,79.111,0.40000417]
[1770830222801,0.47937936,79.148,79.091,12.64366362]
[1770830222982,0.47937936,79.146,79.086,12.64446298]
[1770830223183,0.47937936,79.146,79.087,0.40000394]
[1770830224189,0.47937936,79.179,79.11,13.18548516]
[1770830224397,0.47937936,79.177,79.111,0.40000373]
[1770830224707,0.47937936,79.177,79.121,0.40000373]
[1770830225006,0.47937936,79.175,79.122,44.23548444]
[1770830225305,0.47937936,79.175,79.131,0.40000351]
[1770830226297,0.47937936,79.186,79.141,0.40000329]
[1770830226496,0.47937936,79.204,79.151,0.40000329]
[1770830226695,0.47937936,79.204,79.122,259.09355172]
[1770830226696,0.47937936,79.203,79.145,44.3]
[1770830226912,0.47937936,79.203,79.141,44.3]
[1770830227100,41.44,79.205,79.141,44.3]
[1770830227101,0.47937936,79.198,79.141,44.3]
[1770830227290,0.47937936,79.193,79.127,0.40000308]
[1770830227610,0.47937936,79.193,79.116,44.3]
[1770830228005,0.47937936,79.193,79.117,0.40000287]
[1770830228615,0.47937936,79.193,79.121,0.40000287]
[1770830229117,0.47937936,79.191,79.131,0.40000266]
[1770830229414,0.47937936,79.19,79.131,0.40000266]
[1770830229713,0.47937936,79.19,79.122,88.55548444]
[1770830230491,0.47937936,79.19,79.123,0.40000246]
[1770830230694,0.47937936,79.188,79.123,0.40000246]
[1770830231193,0.47937936,79.186,79.124,12.63839037]
[1770830231891,0.47937936,79.186,79.124,44.2343663]
[1770830232090,0.47937936,79.186,79.13,13.18548516]
[1770830232293,0.47937936,79.186,79.131,0.40000206]
[1770830232595,12.6276938,79.192,79.151,0.40000206]
[1770830232808,12.6276938,79.192,79.16,13.18548516]
[1770830233011,5.36086188,79.221,79.158,0.40000186]
[1770830233012,13.10277303,79.218,79.17,13.18548516]
[1770830233209,0.47937936,79.217,79.18,13.18548516]
[1770830233409,0.47937936,79.215,79.162,12.63232358]
[1770830233606,0.47937936,79.213,79.155,12.63342447]
[1770830234015,44.18299333,79.216,79.145,12.63496847]
[1770830234016,0.47937936,79.203,79.145,12.63496847]
[1770830234199,4.61729252,79.207,79.14,25.82122513]
[1770830234200,0.47937936,79.201,79.14,25.82122513]
[1770830234912,0.47937936,79.193,79.134,0.40000166]
[1770830235115,0.47937936,79.193,79.13,13.18548516]
[1770830235306,0.47937936,79.18,79.124,12.63837177]
[1770830235917,5.36086188,79.191,79.124,12.63837177]
[1770830235918,0.47937936,79.251,79.174,0.40000128]
[1770830236112,12.6151129,79.27,79.21,13.18548516]
[1770830236113,0.47937936,79.264,79.21,13.18548516]
[1770830236307,0.47937936,79.262,79.204,6.58]
[1770830236501,5.36086188,79.259,79.204,6.58]
[1770830236702,0.47937936,79.254,79.204,6.58]
[1770830237197,0.47937936,79.254,79.22,13.18548516]
[1770830237398,0.47937936,79.252,79.204,6.58]
[1770830237798,0.47937936,79.252,79.21,13.18548516]
[1770830238199,0.47937936,79.252,79.22,13.18548516]
[1770830238523,0.47937936,79.252,79.204,6.58]
[1770830238907,0.47937936,79.25,79.204,6.58]
[1770830239316,0.47937936,79.25,79.21,13.18548516]
[1770830239529,0.47937936,79.262,79.22,0.40000072]
[1770830239700,0.47937936,79.262,79.211,44.18578227]
[1770830239701,0.47937936,79.28,79.23,13.58548569]
[1770830239899,0.47937936,79.28,79.26,13.18548516]
[1770830240110,0.47937936,79.28,79.241,0.40000053]
[1770830240319,0.47937936,79.28,79.25,13.18548516]
[1770830241111,0.47937936,79.28,79.24,13.18548516]
[1770830241306,12.61256716,79.286,79.25,13.18548516]
[1770830241618,0.46988008,79.285,79.25,13.18548516]
[1770830242520,0.46988008,79.285,79.241,44.56905389]
[1770830242521,0.1,79.29,79.261,0.4]
[1770830242714,32.00010495,79.289,79.241,44.16905389]
[1770830243036,0.46988008,79.288,79.241,12.61972968]
[1770830243510,0.46988008,79.286,79.25,13.18548516]
[1770830243708,0.46988008,79.286,79.249,12.61830124]
[1770830243907,0.46988008,79.286,79.243,12.61931527]
[1770830244937,44.14342829,79.287,79.23,13.18548516]
[1770830244938,0.46988008,79.284,79.23,13.18548516]
[1770830245126,0.46988008,79.284,79.22,25.80856014]
[1770830245625,0.46988008,79.282,79.22,57.36624759]
[1770830245919,0.46988008,79.274,79.21,44.74704698]
[1770830246125,0.46988008,79.274,79.211,12.62450922]
[1770830246625,0.46988008,79.263,79.202,44.34]
[1770830246826,0.48138993,79.254,79.202,44.34]
[1770830247010,0.48138993,79.252,79.202,44.34]
[1770830247412,0.48138993,79.25,79.202,44.34]
[1770830247721,0.48138993,79.248,79.202,44.34]
[1770830247922,0.48138993,79.248,79.203,12.62578437]
[1770830248329,0.48138993,79.248,79.182,0.39999882]
[1770830248626,0.48138993,79.246,79.19,13.18548516]
[1770830248826,0.48138993,79.246,79.186,0.39999866]
[1770830249325,0.48138993,79.246,79.19,13.18548516]
[1770830249710,0.48138993,79.244,79.191,12.62769759]
[1770830250631,0.48138993,79.244,79.21,13.18548516]
[1770830250833,0.48138993,79.244,79.201,0.3999985]
[1770830252331,12.61941117,79.243,79.203,0.39999819]
[1770830253039,13.1008011,79.243,79.203,0.39999819]
[1770830253414,0.48138993,79.242,79.202,12.62594378]
[1770830253816,0.48138993,79.242,79.197,12.62673325]
[1770830254318,0.48138993,79.24,79.174,12.63040897]
[1770830254519,0.48138993,79.234,79.174,12.63040897]
[1770830255417,5.36086188,79.225,79.163,12.63216401]
[1770830255624,0.48138993,79.224,79.163,12.63216401]
[1770830257119,0.48138993,79.222,79.165,12.63184488]
[1770830258619,0.48138993,79.22,79.17,13.18548516]
[1770830258843,0.48138993,79.22,79.171,0.39999715]
[1770830259040,5.36086188,79.214,79.146,12.63487731]
[1770830259250,0.48138993,79.205,79.146,12.63487731]
[1770830259555,9.9781544,79.197,79.132,13.03710982]
[1770830259721,5.36086188,79.189,79.131,44.18]
[1770830259916,0.48138993,79.184,79.131,56.81718352]
[1770830260247,5.36086188,79.174,79.101,0.39999701]
[1770830260439,0.48138993,79.165,79.101,0.39999701]
[1770830260627,0.48138993,79.173,79.132,12.63711267]
[1770830261226,0.48138993,79.173,79.133,0.39999687]
[1770830261426,30.28,79.213,79.151,0.39999687]
[1770830261630,0.48138993,79.212,79.151,0.39999687]
[1770830262641,0.48138993,79.21,79.152,13.03391627]
[1770830262933,0.48138993,79.208,79.152,12.63391954]
[1770830263142,0.48138993,79.208,79.152,44.2187184]
[1770830263336,0.48138993,79.204,79.146,12.63481947]
[1770830264742,5.36086188,79.193,79.132,12.63711267]
[1770830265042,5.36086188,79.189,79.122,12.63860998]
[1770830265223,5.36086188,79.187,79.131,0.39999632]
[1770830265526,0.48138993,79.194,79.132,44.14]
[1770830265732,5.36086188,79.193,79.125,0.39999632]
[1770830266130,5.36086188,79.185,79.122,12.63860998]
[1770830266326,5.36086188,79.185,79.122,44.23538458]
[1770830266725,157.86017375,79.184,79.122,12.63860998]
[1770830267036,5.36086188,79.182,79.122,12.63860998]
[1770830267226,0.48138993,79.175,79.122,12.63860998]
[1770830268445,0.48138993,79.175,79.131,0.39999593]
[1770830269150,0.48138993,79.173,79.132,12.63711267]
[1770830269530,0.48138993,79.173,79.132,44.62989015]
[1770830269751,0.48138993,79.173,79.133,0.39999568]
[1770830271049,0.46767378,79.171,79.122,44.1]
[1770830271346,0.46767378,79.171,79.123,12.6385501]
[1770830271533,0.46767378,79.171,79.123,44.23492536]
[1770830271734,0.46767378,79.17,79.123,44.23492536]
[1770830272146,0.46767378,79.169,79.123,44.23492536]
[1770830272535,0.46767378,79.167,79.115,0.39999531]
[1770830272735,0.46767378,79.167,79.121,0.39999519]
[1770830274633,0.46767378,79.167,79.122,12.63870984]
[1770830274634,0.46767378,79.165,79.122,12.63870984]
[1770830274976,0.46767378,79.165,79.122,44.23548444]
[1770830275140,0.46767378,79.165,79.122,44.63547939]
[1770830275950,0.46767378,79.165,79.122,44.23548444]
[1770830277361,0.46767378,79.163,79.113,12.64014763]
[1770830277656,0.46767378,79.163,79.114,0.39999472]
[1770830277833,0.46767378,79.163,79.113,12.64014763]
[1770830278246,0.46767378,79.163,79.114,0.3999946]
[1770830278450,0.46767378,79.163,79.121,0.3999946]
[1770830278839,12.63200444,79.164,79.121,0.3999946]
[1770830279047,50.48758333,79.228,79.113,88.26051672]
[1770830279048,0.46767378,79.197,79.151,0.39999449]
[1770830279251,0.46767378,79.194,79.137,0.39999449]
[1770830279453,0.46767378,79.192,79.141,0.39999449]
[1770830280349,0.46767378,79.192,79.138,12.63615456]
[1770830280552,0.46767378,79.19,79.134,12.63673772]
[1770830280761,0.46767378,79.184,79.134,12.63679328]
[1770830281545,0.46767378,79.228,79.151,0.39999427]
[1770830281859,0.46767378,79.205,79.151,0.39999427]
[1770830282060,0.46767378,79.203,79.151,0.39999427]
[1770830282256,0.46767378,79.203,79.134,44.22877649]
[1770830282257,0.46767378,79.203,79.135,0.39999416]
[1770830282454,0.46767378,79.201,79.135,0.39999416]
[1770830283159,0.46767378,79.194,79.134,12.63679328]
[1770830283362,0.46767378,79.192,79.134,12.63679328]
[1770830283664,0.46767378,79.19,79.134,12.63679328]
[1770830285666,0.46767378,79.188,79.135,0.39999374]
[1770830286455,0.46767378,79.186,79.141,0.39999374]
[1770830287861,0.46767378,79.184,79.13,31.59345591]
[1770830288066,0.46767378,79.182,79.121,12.63886957]
[1770830288258,5.36086188,79.162,79.105,12.64142595]
[1770830288462,0.46767378,79.155,79.105,12.64142595]
[1770830289358,0.46767378,79.152,79.097,31.6067613]
[1770830289867,0.46767378,79.144,79.087,12.64418285]
[1770830291046,0.46767378,79.134,79.08,0.2]
[1770830291455,0.46767378,79.125,79.08,0.2]
[1770830292275,0.46767378,79.125,79.066,12.64757273]
[1770830292486,0.46767378,79.12,79.052,0.46187352]
[1770830292768,0.46767378,79.114,79.052,0.46187352]
[1770830293360,0.46767378,79.112,79.051,12.50948987]
[1770830293972,0.46767378,79.112,79.051,44.13464325]
[1770830294557,0.46767378,79.11,79.051,44.13464325]
[1770830294867,0.46767378,79.108,79.06,13.14517945]
[1770830295067,0.46767378,79.108,79.051,44.13464325]
[1770830295269,0.46767378,79.108,79.052,0.13811934]
[1770830295464,0.46767378,79.106,79.052,0.13811934]
[1770830295658,0.46767378,79.104,79.051,12.50948987]
[1770830295865,13.18771219,79.08,79.051,12.50948987]
[1770830296049,13.18771219,79.06,79.05,0.2]
[1770830296252,0.46767378,79.069,79.05,0.2]
[1770830297674,13.18771219,79.09,79.052,0.13811906]
[1770830297863,13.18771219,79.08,79.051,12.65006135]
[1770830298463,13.18771219,79.07,79.051,12.65006135]
[1770830298674,0.46767378,79.079,79.051,12.65006135]
[1770830298853,0.46767378,79.087,79.051,12.65006135]
[1770830299048,0.46767378,79.079,79.05,0.2]
[1770830299253,13.18771219,79.07,79.05,0.2]
[1770830299672,5.36086188,79.103,79.05,0.2]
[1770830299673,0.46767378,79.089,79.051,12.65006135]
[1770830300477,0.46767378,79.089,79.051,44.27521473]
[1770830301172,0.46767378,79.089,79.05,13.38771219]
[1770830301173,0.50000379,79.069,79.05,0.2]
[1770830301381,13.18771219,79.06,79.05,0.2]
[1770830301681,0.50000379,79.069,79.05,0.2]
[1770830302252,13.18771219,79.06,79.05,0.2]
[1770830302876,0.50000379,79.059,79.04,0.2]
[1770830303056,13.18771219,79.05,79.04,0.2]
[1770830303261,0.50000379,79.049,79.04,0.2]
[1770830303463,13.18771219,79.04,79.017,12.65550451]
[1770830303670,0.50000379,79.049,79.017,44.29426578]
[1770830304375,0.46544522,79.064,79.018,0.19999957]
[1770830304558,50.55447119,79.123,79.031,0.19999957]
[1770830304559,13.18771219,79.08,79.031,0.19999957]
[1770830305075,25.8332555,79.08,79.042,12.65150173]
[1770830305277,0.46544522,79.079,79.043,0.19999949]
[1770830305575,13.18771219,79.08,79.044,43.86]
[1770830305772,0.46544522,79.079,79.044,43.86]
[1770830307180,0.46544522,79.079,79.045,12.65102156]
[1770830307370,12.64574217,79.078,79.045,12.65102156]
[1770830307562,13.18771219,79.07,79.045,12.65102156]
[1770830307762,13.64450199,79.06,79.037,43.88]
[1770830307973,13.64450199,79.06,78.99,50.6388492]
[1770830307974,0.4567898,79.049,79.011,31.64080406]
[1770830308172,13.18771219,79.04,79.011,31.64080406]
[1770830308480,0.4567898,79.059,79.021,0.19999917]
[1770830308682,13.64450199,79.07,79.031,0.19999909]
[1770830308886,13.18771219,79.06,79.031,0.19999909]
[1770830309058,0.4567898,79.059,79.011,31.64080406]
[1770830309261,4.61729252,79.085,79.0,0.2]
[1770830309262,0.4567898,79.039,79.007,12.65710633]
[1770830309481,13.18771219,79.03,79.007,12.65710633]
[1770830309864,0.4567898,79.049,79.011,0.19999901]
[1770830310362,13.18771219,79.04,79.007,44.29987216]
[1770830310562,0.4567898,79.029,79.007,12.65710633]
[1770830310769,0.4567898,79.029,79.001,12.65806761]
[1770830311368,12.65374297,79.028,79.001,12.65806761]
[1770830311887,0.4567898,79.009,78.978,31.65422686]
[1770830312068,13.18771219,79.0,78.979,12.66159358]
[1770830312265,0.4567898,78.989,78.937,0.19999886]
[1770830312500,0.4567898,78.989,78.919,50.68477978]
[1770830312501,13.18771219,78.98,78.964,12.66388311]
[1770830312991,13.18771219,78.98,78.961,12.66436233]
[1770830313172,13.18771219,78.98,78.957,12.66510361]
[1770830313484,13.18771219,78.98,78.964,12.66396368]
[1770830313675,25.84594003,79.0,78.97,12.86289569]
[1770830314186,13.11501764,79.0,78.97,12.86289569]
[1770830314373,0.4567898,78.999,78.97,12.86289569]
[1770830315282,13.18771219,78.98,78.97,0.2]
[1770830315492,13.18771219,78.99,78.97,0.2]
[1770830315663,13.11533811,78.998,78.971,12.66287624]
[1770830315864,13.11533811,78.998,78.97,0.2]
[1770830315865,13.18771219,78.99,78.97,0.2]
[1770830316068,13.18771219,79.0,78.971,12.66287624]
[1770830316678,13.64450199,79.0,78.971,12.66287624]
[1770830317369,0.4567898,79.0,78.97,0.2]
[1770830317708,0.4567898,78.989,78.97,0.2]
[1770830318198,13.18771219,79.01,78.971,12.66287624]
[1770830318581,13.6877152,79.01,78.971,44.32006685]
[1770830318780,0.50000301,79.009,78.971,44.32006685]
[1770830319290,13.18771219,78.98,78.97,0.2]
[1770830319589,0.50000301,78.979,78.97,0.2]
[1770830321792,0.50000301,78.979,78.941,44.33690983]
[1770830323185,12.6617539,78.978,78.941,44.33690983]
[1770830323489,0.50000301,78.959,78.941,12.66768852]
[1770830323687,0.50000301,78.959,78.915,43.84]
[1770830324082,0.50000301,78.959,78.92,13.21900593]
[1770830324385,0.50000301,78.959,78.911,107.71628795]
[1770830324578,13.21900593,78.97,78.93,13.21900593]
[1770830324885,25.8804897,78.98,78.93,13.21900593]
[1770830325069,0.50000301,78.979,78.93,13.21900593]
[1770830325269,13.16086845,78.984,78.94,13.21900593]
[1770830325490,13.21900593,78.98,78.94,13.21900593]
[1770830325784,0.50000301,78.979,78.941,44.33690983]
[1770830326092,0.50000301,78.969,78.941,12.66768852]
[1770830326472,0.50000301,78.959,78.931,12.66929343]
[1770830327286,13.71900894,78.95,78.922,12.67073819]
[1770830327584,44.31507418,78.98,78.883,8.82041228]
[1770830327585,0.50000301,78.939,78.912,12.67234387]
[1770830327792,0.50000301,78.939,78.902,31.68471031]
[1770830327991,0.50000301,78.919,78.895,12.67507446]
[1770830329192,0.50000301,78.919,78.89,12.77571849]
[1770830330073,0.50000301,78.919,78.89,0.1]
[1770830331209,13.21900593,78.91,78.89,0.1]
[1770830331381,13.21900593,78.93,78.89,0.1]
[1770830331581,0.50000301,78.919,78.89,0.1]
[1770830331898,0.50000301,78.909,78.89,0.1]
[1770830332095,13.21900593,78.9,78.89,0.1]
[1770830332301,0.50000301,78.908,78.89,0.1]
[1770830332891,13.21900593,78.9,78.89,0.1]
[1770830333284,0.50000301,78.908,78.89,0.1]
[1770830333797,0.50000301,78.928,78.89,13.31900593]
[1770830333994,13.16993852,78.927,78.891,12.67571712]
[1770830334187,0.50000301,78.926,78.891,44.36500994]
[1770830334784,13.21900593,78.92,78.891,44.36500994]
[1770830335288,0.50000301,78.926,78.891,44.36500994]
[1770830336117,41.46,78.939,78.9,13.21900593]
[1770830336319,13.21900593,78.96,78.92,13.21900593]
[1770830336487,0.50000301,78.968,78.93,13.21900593]
[1770830337713,0.50000301,78.968,78.94,13.21900593]
[1770830337883,0.50000301,78.968,78.93,13.21900593]
[1770830338089,0.50000301,78.978,78.941,12.66768852]
[1770830338885,0.50000301,78.969,78.931,12.66929343]
[1770830339515,0.50000301,78.949,78.911,12.67250446]
[1770830340215,0.50000301,78.947,78.911,12.67250446]
[1770830340723,0.50000301,78.947,78.911,44.35376562]
[1770830341018,0.50000301,78.97,78.94,13.21900593]
[1770830341192,0.50000301,78.97,78.93,13.21900593]
[1770830341393,13.21900593,78.96,78.92,13.21900593]
[1770830341589,0.50000301,78.969,78.94,13.21900593]
[1770830342319,0.50000301,78.967,78.93,13.21900593]